bitfinex/quotes_ETHUSD_20260306
["timestamp","ask_amount","ask_price","bid_price","bid_amount"]
[1772771610465,0.60755886,2075.7,2075.1,0.64599993]
[1772771611265,1.81200906,2075.7,2075.2,1.20470316]
[1772771611467,1.81200906,2075.7,2075.2,1.85070309]
[1772771611993,0.60755886,2075.6,2075.2,1.85070309]
[1772771612779,0.60755886,2075.6,2075.1,1.20471789]
[1772771613180,0.60755886,2075.6,2075.1,1.85071782]
[1772771614293,0.60755886,2075.6,2075.2,0.64599993]
[1772771615600,0.60755886,2075.6,2075.2,1.85066228]
[1772771616202,1.20447629,2075.6,2075.0,0.64599993]
[1772771616373,0.60755886,2075.5,2075.0,0.64599993]
[1772771617579,0.60755886,2075.5,2075.1,1.85076114]
[1772771618802,0.60755886,2075.5,2075.4,0.0011]
[1772771620102,0.60755886,2075.7,2075.4,0.64709993]
[1772771620416,2.45011685,2075.8,2075.4,0.64709993]
[1772771620896,0.32455799,2075.8,2075.4,0.64709993]
[1772771622102,0.32455799,2075.8,2075.5,0.64599993]
[1772771623901,2.13647313,2075.8,2075.4,0.0011]
[1772771624095,0.60755886,2075.7,2075.4,0.0011]
[1772771625083,0.60755886,2075.7,2075.4,0.64709993]
[1772771625995,0.60755886,2075.7,2075.4,1.85166563]
[1772771626306,3.04791427,2075.8,2075.4,1.85166563]
[1772771626932,3.65547313,2075.8,2075.4,0.64709993]
[1772771627077,3.65547313,2075.8,2075.4,1.85168391]
[1772771627777,2.45111685,2075.8,2075.4,1.85168391]
[1772771628393,3.65547917,2075.8,2075.4,1.85168391]
[1772771629307,2.45211685,2075.8,2075.4,1.85168391]
[1772771629905,2.13647791,2075.8,2075.4,1.8516702]
[1772771630115,2.45211685,2075.8,2075.4,1.8516702]
[1772771630304,3.65649109,2075.8,2075.4,0.64709993]
[1772771631081,0.60755886,2075.7,2075.4,1.851685]
[1772771632101,0.60755886,2075.7,2075.6,0.0011]
[1772771632299,1.84455799,2075.8,2075.6,0.0011]
[1772771633219,0.32455799,2075.8,2075.6,0.64709993]
[1772771633408,0.001,2076.0,2075.8,0.64599993]
[1772771633584,0.60855886,2076.3,2075.7,0.64599993]
[1772771633789,1.508,2076.3,2075.7,0.64599993]
[1772771634522,0.001,2076.3,2075.7,0.64599993]
[1772771634723,1.509,2076.7,2075.8,0.64599993]
[1772771635223,0.60755886,2076.9,2076.0,0.64599993]
[1772771635526,2.08555886,2076.9,2076.0,0.64599993]
[1772771635687,0.60755886,2076.9,2076.0,0.64599993]
[1772771635892,2.08455886,2076.9,2076.0,0.64599993]
[1772771636208,0.60855886,2077.1,2076.1,0.64599993]
[1772771636413,0.60855886,2077.1,2076.2,0.64599993]
[1772771636823,0.001,2077.1,2076.2,0.64599993]
[1772771637210,0.001,2077.1,2076.4,0.64599993]
[1772771638510,0.60855886,2077.1,2076.4,0.64599993]
[1772771639926,0.60855886,2077.1,2076.6,0.67049194]
[1772771640127,1.20461691,2077.1,2076.6,0.67049194]
[1772771640334,0.65839456,2077.0,2076.3,0.79026882]
[1772771640627,0.65839456,2076.8,2076.3,0.79026882]
[1772771642419,1.20369299,2077.0,2076.4,0.67049194]
[1772771642623,3.35203647,2077.1,2076.4,0.67049194]
[1772771643115,3.35203968,2077.1,2076.4,0.67049194]
[1772771643317,0.001,2077.1,2076.4,0.67049194]
[1772771644524,0.001,2077.1,2076.6,0.67049194]
[1772771645194,1.20436261,2077.6,2076.7,0.67049194]
[1772771645927,1.20436261,2077.6,2076.6,0.67049194]
[1772771645928,0.65839456,2077.5,2076.6,0.67049194]
[1772771646117,0.65839456,2077.5,2076.5,1.87444089]
[1772771646433,0.65839456,2077.5,2076.6,0.67049194]
[1772771647633,0.65839456,2077.3,2076.6,0.67049194]
[1772771649295,0.65839456,2077.2,2076.7,1.203833]
[1772771649500,0.65839456,2077.4,2076.7,1.87432494]
[1772771649834,0.65839456,2077.4,2076.6,1.20384587]
[1772771650397,0.65839456,2077.4,2076.6,1.87433781]
[1772771650602,0.65839456,2077.4,2076.7,0.67049194]
[1772771651335,0.65939456,2077.6,2076.9,0.67049194]
[1772771651513,0.001,2077.6,2076.9,0.67049194]
[1772771653307,0.001,2077.9,2076.8,1.20377503]
[1772771653308,0.001,2077.9,2077.2,0.67049194]
[1772771654049,0.65939456,2078.4,2077.9,0.67049194]
[1772771654642,4.96583653,2078.7,2077.1,2.53460117]
[1772771654643,1.35767668,2078.7,2077.3,0.67049194]
[1772771655125,1.20344966,2079.1,2077.7,0.67049194]
[1772771655316,1.35872874,2078.9,2078.1,0.67049194]
[1772771655631,0.50903816,2078.7,2078.1,0.67049194]
[1772771658207,1.2027326,2078.6,2078.1,1.87350035]
[1772771658406,0.15970848,2078.5,2077.8,1.20315589]
[1772771659031,0.15970848,2078.5,2077.8,1.87364783]
[1772771659207,1.2027326,2078.6,2077.9,0.67049194]
[1772771659812,0.16198886,2078.5,2077.6,1.87375215]
[1772771660224,0.16198886,2078.5,2077.4,1.87387289]
[1772771660225,0.16198886,2078.3,2077.4,1.87387289]
[1772771660423,0.16198886,2078.3,2077.4,0.67049194]
[1772771660628,0.16198886,2078.1,2077.3,1.20343926]
[1772771660830,0.16198886,2078.1,2077.2,1.87400248]
[1772771661408,0.16198886,2078.1,2077.2,0.67049194]
[1772771661613,0.16198886,2078.1,2077.2,1.87403286]
[1772771662008,0.16198886,2078.1,2077.2,1.87402186]
[1772771662443,0.16422059,2077.7,2076.7,0.67049194]
[1772771663122,0.16530789,2077.5,2076.5,2.49321911]
[1772771663319,0.16530789,2077.5,2076.6,0.67049194]
[1772771664140,0.16530789,2077.5,2076.5,0.61880378]
[1772771664339,0.16639046,2077.3,2076.5,1.82273195]
[1772771664713,0.16639046,2077.3,2076.5,2.49322389]
[1772771665548,0.50903816,2077.2,2076.5,2.49322389]
[1772771667322,1.3731692,2077.1,2076.5,0.61880378]
[1772771667523,0.16956803,2077.0,2076.5,0.46003203]
[1772771668563,0.16956803,2077.0,2076.7,0.0011]
[1772771668719,0.16956803,2077.0,2076.5,0.28854091]
[1772771669047,0.16956803,2077.0,2076.3,0.0011]
[1772771669048,0.4256476,2076.9,2076.3,0.0011]
[1772771669220,0.0014107,2076.8,2076.3,0.0011]
[1772771669615,1.20389097,2076.6,2076.3,0.0011]
[1772771671452,1.20363603,2076.5,2076.3,0.0011]
[1772771672056,2.40758633,2076.5,2076.3,0.0011]
[1772771673648,2.4145254,2076.5,2076.3,0.0011]
[1772771673852,0.00693907,2076.4,2076.0,0.0011]
[1772771676506,1.20406492,2076.3,2076.0,0.0011]
[1772771676668,1.515,2076.6,2076.0,0.68717703]
[1772771676865,0.50903817,2076.3,2076.0,0.68717703]
[1772771679172,2.719833,2076.7,2076.1,0.68607703]
[1772771680076,0.69459787,2076.6,2076.1,0.68607703]
[1772771680477,0.69459787,2076.6,2076.3,0.0011]
[1772771680677,0.001,2076.5,2076.3,0.0011]
[1772771681872,0.001,2076.5,2076.3,0.68717703]
[1772771682469,1.20374352,2076.9,2076.4,0.68557703]
[1772771683171,0.69459787,2076.8,2076.4,0.68557703]
[1772771683574,0.69459787,2076.8,2076.5,0.68557703]
[1772771684601,0.69459787,2076.8,2076.3,0.0011]
[1772771684904,0.69459787,2076.8,2076.3,1.20516073]
[1772771685092,0.69459787,2076.8,2076.3,1.89073776]
[1772771685290,1.89838248,2076.8,2076.4,0.68557703]
[1772771686719,1.89838248,2076.8,2076.3,0.68667703]
[1772771688310,0.69459787,2076.8,2076.4,0.68557703]
[1772771689780,0.41572607,2076.8,2076.5,1.20394895]
[1772771689977,3.02454608,2077.7,2076.6,0.64198761]
[1772771690189,0.42708854,2077.6,2076.6,0.64198761]
[1772771690407,0.42708854,2077.5,2076.6,0.64198761]
[1772771690615,3.02454608,2077.7,2076.6,0.64198761]
[1772771690813,0.73093508,2077.6,2076.6,0.64198761]
[1772771691114,2.72225359,2077.7,2076.6,0.64198761]
[1772771691115,0.30338394,2077.4,2076.6,0.64198761]
[1772771691415,0.73093508,2077.3,2076.6,0.64198761]
[1772771691618,0.30338394,2077.3,2076.6,0.64198761]
[1772771692908,1.20354323,2077.2,2076.6,0.64198761]
[1772771695702,0.30762484,2077.0,2076.5,0.0011]
[1772771695902,1.94812653,2077.1,2076.5,0.0011]
[1772771695903,0.7406439,2076.9,2076.5,0.0011]
[1772771696107,0.30866468,2076.9,2076.5,0.0011]
[1772771697224,1.20377503,2076.8,2076.5,0.0011]
[1772771697523,1.51345832,2076.8,2076.3,0.0011]
[1772771697823,0.43224279,2076.7,2076.3,0.0011]
[1772771698023,1.51345832,2076.8,2076.3,0.0011]
[1772771698192,0.43237941,2076.7,2076.3,0.0011]
[1772771698398,1.20377503,2076.8,2076.3,0.0011]
[1772771698599,0.74204852,2076.7,2076.3,0.0011]
[1772771698808,0.30959907,2076.7,2076.3,0.0011]
[1772771699295,1.20389097,2076.6,2076.3,0.0011]
[1772771701211,2.72389097,2076.6,2076.3,0.0011]
[1772771702329,1.521,2076.7,2076.3,0.68577887]
[1772771703629,2.72484577,2076.7,2076.3,0.68577887]
[1772771704430,2.72483572,2076.7,2076.4,0.68467887]
[1772771705227,1.20383572,2076.7,2076.4,0.68467887]
[1772771705429,1.20383572,2076.7,2076.5,0.0011]
[1772771705801,0.001,2076.6,2076.5,0.0011]
[1772771706600,2.72582032,2076.8,2076.5,0.0011]
[1772771706601,1.20377617,2076.8,2076.5,0.68577887]
[1772771706929,4.81449529,2077.1,2076.5,0.68577887]
[1772771707124,1.95504957,2077.0,2076.5,0.68577887]
[1772771707329,0.43304957,2076.9,2076.5,0.68577887]
[1772771707525,0.43304957,2076.8,2076.5,0.68577887]
[1772771707705,1.522,2077.0,2076.5,0.68577887]
[1772771707905,1.63691108,2076.9,2076.5,0.68577887]
[1772771708108,0.31274271,2076.7,2076.3,0.0011]
[1772771708448,0.43303292,2076.6,2076.3,0.0011]
[1772771708604,0.31274271,2076.7,2076.3,0.0011]
[1772771708803,1.51651629,2076.9,2076.3,0.68577887]
[1772771709015,0.74582357,2076.8,2076.3,0.68577887]
[1772771709228,0.43297306,2076.7,2076.3,0.68577887]
[1772771709434,0.43302918,2076.6,2076.3,0.68577887]
[1772771709602,0.31285051,2076.8,2076.3,0.68577887]
[1772771709798,1.20389097,2076.6,2076.3,0.0011]
[1772771712433,1.20387598,2076.7,2076.3,0.68577887]
[1772771712608,0.43310122,2076.6,2076.3,0.0011]
[1772771712807,1.51705078,2076.7,2076.3,0.0011]
[1772771713030,0.43308603,2076.6,2076.3,0.0011]
[1772771713209,1.51705078,2076.7,2076.3,0.0011]
[1772771713419,0.43305681,2076.6,2076.3,0.0011]
[1772771713605,1.51705078,2076.7,2076.3,0.0011]
[1772771713805,0.43305739,2076.6,2076.3,0.0011]
[1772771714113,1.51705078,2076.7,2076.3,0.0011]
[1772771714316,0.43303238,2076.6,2076.3,0.0011]
[1772771714515,1.51705078,2076.7,2076.3,0.0011]
[1772771714718,0.43303942,2076.6,2076.3,0.0011]
[1772771714911,1.51705078,2076.7,2076.3,0.0011]
[1772771715150,0.43303081,2076.6,2076.3,0.0011]
[1772771715431,1.51705078,2076.7,2076.3,0.0011]
[1772771715632,0.43301658,2076.6,2076.3,0.0011]
[1772771715813,1.51705078,2076.7,2076.3,0.0011]
[1772771716018,0.4330161,2076.6,2076.3,0.0011]
[1772771716223,1.51705078,2076.7,2076.3,0.0011]
[1772771716419,1.20394895,2076.5,2076.3,0.0011]
[1772771718137,0.001,2076.4,2076.3,0.0011]
[1772771720133,0.001,2076.4,2076.0,0.0011]
[1772771720334,0.001,2076.4,2075.8,0.68577887]
[1772771720335,0.64122897,2076.2,2075.8,0.68577887]
[1772771720524,1.20418091,2076.1,2075.8,0.68577887]
[1772771720839,1.84628297,2076.4,2075.9,0.68467887]
[1772771721143,1.95897669,2076.3,2075.9,0.68467887]
[1772771721360,1.526,2076.3,2075.9,0.68467887]
[1772771722424,1.84538007,2076.2,2075.8,0.68577887]
[1772771722727,2.7301024,2076.3,2075.8,0.68577887]
[1772771724581,0.001,2076.4,2075.9,0.68467887]
[1772771724719,2.73200751,2076.4,2075.9,0.68467887]
[1772771724925,0.64122897,2076.2,2075.8,0.0011]
[1772771726624,1.84539686,2076.2,2075.8,0.0011]
[1772771726941,1.20416789,2076.2,2075.8,0.68577887]
[1772771727738,3.37327686,2076.4,2075.8,0.68577887]
[1772771728828,0.64122897,2076.3,2075.8,1.8901056]
[1772771729750,0.64122897,2076.3,2076.0,0.0011]
[1772771729938,0.64222897,2076.3,2076.0,0.0011]
[1772771731949,1.86254569,2076.2,2076.0,0.0011]
[1772771732759,0.65842278,2076.1,2075.6,0.0011]
[1772771733935,0.65842278,2075.9,2075.6,0.0011]
[1772771734128,1.528,2075.8,2075.6,0.0011]
[1772771735035,2.18742278,2075.8,2075.6,0.0011]
[1772771736629,3.39182579,2075.8,2075.6,0.0011]
[1772771736935,0.65842278,2076.1,2075.7,0.65905662]
[1772771737135,0.65842278,2076.1,2075.6,0.0011]
[1772771737741,0.65842278,2076.1,2075.6,0.66015662]
[1772771738564,2.18742278,2076.1,2075.6,0.66015662]
[1772771739859,1.20423892,2076.0,2075.6,1.86462101]
[1772771740026,1.86264462,2076.1,2075.7,0.65905662]
[1772771740223,3.39264462,2076.1,2075.7,0.65905662]
[1772771741651,3.39264462,2076.1,2075.6,0.0011]
[1772771741652,0.65842278,2076.0,2075.6,0.0011]
[1772771741858,0.65842278,2075.8,2075.6,0.0011]
[1772771743945,1.20441296,2075.7,2075.6,0.0011]
[1772771745156,1.86282098,2075.8,2075.6,0.0011]
[1772771746081,1.2043982,2075.8,2075.6,0.0011]
[1772771746361,1.532,2075.9,2075.6,0.66015662]
[1772771746659,1.532,2075.9,2075.6,0.0011]
[1772771747649,1.532,2075.9,2075.6,0.66015662]
[1772771747952,2.19042278,2075.9,2075.6,0.0011]
[1772771748533,1.20435494,2075.8,2075.6,0.0011]
[1772771749146,3.39476182,2075.9,2075.6,0.0011]
[1772771752573,3.39476182,2075.9,2075.3,0.0011]
[1772771752574,0.65842278,2075.8,2075.3,0.0011]
[1772771753157,0.65842278,2075.6,2075.3,0.0011]
[1772771753955,0.65842278,2075.6,2075.0,0.65905662]
[1772771754276,0.65842278,2075.6,2074.9,0.0011]
[1772771754573,0.65842278,2075.6,2075.5,0.0011]
[1772771754878,0.65842278,2075.6,2074.9,0.0011]
[1772771755081,0.65842278,2075.6,2074.9,0.66015662]
[1772771755378,1.534,2075.5,2075.0,0.65905662]
[1772771755847,1.534,2075.4,2075.0,0.65905662]
[1772771756281,1.86291757,2075.6,2075.0,0.65905662]
[1772771757151,1.86291757,2075.6,2075.0,1.86387115]
[1772771757352,1.86291757,2075.6,2075.1,0.65905662]
[1772771757683,1.534,2075.5,2075.1,0.65905662]
[1772771757845,2.73849479,2075.6,2075.1,0.65905662]
[1772771759262,2.73849479,2075.6,2075.2,0.65905662]
[1772771762381,0.71839058,2075.5,2075.0,1.20480948]
[1772771762685,0.71839058,2075.5,2074.9,1.91146482]
[1772771762885,0.71839058,2075.5,2075.0,0.70551909]
[1772771763068,0.71839058,2075.5,2074.9,0.0011]
[1772771764762,1.20458706,2075.4,2074.9,0.70661909]
[1772771764967,1.20457196,2075.5,2074.9,0.70661909]
[1772771765163,1.92296254,2075.5,2074.9,0.70661909]
[1772771766560,1.92296254,2075.5,2075.4,0.0011]
[1772771767161,0.71839058,2075.4,2075.1,0.0011]
[1772771768981,1.9229889,2075.4,2075.1,0.0011]
[1772771770891,1.9229889,2075.4,2075.1,0.70661909]
[1772771771203,0.001,2075.7,2075.2,0.70551909]
[1772771771361,1.92383397,2075.7,2075.2,0.70551909]
[1772771771564,0.71839058,2075.6,2075.2,0.70551909]
[1772771774077,1.20452902,2075.5,2075.2,0.70551909]
[1772771778299,1.20452902,2075.5,2075.4,0.0011]
[1772771778897,1.20452902,2075.5,2075.1,1.20586034]
[1772771778898,0.71839058,2075.4,2075.1,0.0011]
[1772771779101,0.71839058,2075.2,2074.6,1.04690164]
[1772771779300,0.71839058,2075.2,2074.6,0.34138255]
[1772771781763,0.71839058,2075.0,2074.6,0.34138255]
[1772771783167,0.71839058,2075.0,2074.7,0.70551909]
[1772771783681,1.92321732,2075.0,2074.7,0.70551909]
[1772771784577,3.45921732,2075.0,2074.7,0.70551909]
[1772771784874,3.45921732,2075.0,2074.6,0.34138255]
[1772771785079,3.45921732,2075.0,2074.6,1.04690164]
[1772771786469,1.536,2075.1,2074.7,0.70551909]
[1772771786879,2.25439058,2075.1,2074.7,0.70551909]
[1772771787996,3.4592079,2075.1,2074.7,0.70551909]
[1772771789020,0.71839058,2075.0,2074.6,0.34138255]
[1772771790118,0.68289717,2074.8,2074.6,0.34138255]
[1772771790884,0.68289717,2074.8,2074.6,0.34248255]
[1772771791113,0.68289717,2074.8,2074.6,1e-08]
[1772771792892,1.20499349,2074.7,2074.6,1e-08]
[1772771793095,1.20499349,2074.7,2074.4,0.72044794]
[1772771793312,0.787906,2075.1,2074.5,0.71934794]
[1772771793313,1.536,2074.9,2074.5,0.71934794]
[1772771794385,2.21889717,2074.9,2074.5,0.71934794]
[1772771795497,1.20493541,2074.8,2074.5,0.71934794]
[1772771797414,1.88783258,2074.8,2074.5,0.71934794]
[1772771797727,0.68289717,2074.7,2074.4,0.0011]
[1772771798301,0.68289717,2074.7,2074.4,0.72044794]
[1772771799641,1.20505157,2074.6,2074.4,0.72044794]
[1772771800127,1.20505157,2074.6,2074.2,0.71934794]
[1772771800487,1.20505157,2074.6,2074.1,0.0011]
[1772771800488,0.68289717,2074.5,2074.1,0.0011]
[1772771800819,0.68289717,2074.3,2074.1,0.0011]
[1772771801919,1.88818113,2074.2,2074.1,0.0011]
[1772771802218,1.88799297,2074.6,2074.1,0.72044794]
[1772771802392,1.537,2074.4,2074.1,0.72044794]
[1772771805724,2.74217134,2074.4,2074.1,0.72044794]
[1772771806219,1.20517134,2074.4,2074.1,0.72044794]
[1772771806436,1.88804437,2074.5,2074.1,0.72044794]
[1772771806597,3.42504437,2074.5,2074.1,0.72044794]
[1772771808308,1.88804437,2074.5,2074.1,0.72044794]
[1772771808498,2.7421472,2074.5,2074.1,0.72044794]
[1772771810601,3.42504437,2074.5,2074.1,0.72044794]
[1772771810797,0.001,2074.6,2074.2,0.71934794]
[1772771813018,0.001,2074.6,2074.3,0.71934794]
[1772771814736,0.001,2074.4,2074.3,0.72044794]
[1772771815139,0.001,2074.4,2074.3,0.0011]
[1772771815338,0.001,2074.4,2074.3,0.72044794]
[1772771819049,0.001,2074.4,2074.3,0.0011]
[1772771819537,0.001,2074.6,2074.4,0.71934794]
[1772771821023,0.40578161,2074.8,2074.5,0.73100036]
[1772771821818,0.001,2075.3,2074.5,0.73100036]
[1772771822022,1.92631424,2075.3,2074.5,0.73100036]
[1772771822215,0.72066742,2075.2,2074.5,0.73100036]
[1772771824572,0.72066742,2075.2,2074.4,0.73100036]
[1772771824573,0.72066742,2075.1,2074.4,0.73100036]
[1772771824862,0.72066742,2075.1,2074.3,1.93732568]
[1772771825058,0.72066742,2075.1,2074.4,0.73100036]
[1772771826375,0.72066742,2075.1,2074.7,0.0011]
[1772771826548,0.72066742,2074.9,2074.7,0.0011]
[1772771826871,0.72066742,2074.9,2074.3,0.0011]
[1772771826872,0.72066742,2074.9,2074.5,0.0011]
[1772771827341,0.72066742,2074.9,2074.5,0.73210036]
[1772771828639,0.72066742,2074.9,2074.6,0.73100036]
[1772771828857,3.46549105,2075.0,2074.6,0.73100036]
[1772771829059,0.72066742,2074.9,2074.5,0.0011]
[1772771829754,0.72066742,2074.9,2074.5,1.9372018]
[1772771831549,1.92555091,2074.9,2074.5,1.9372018]
[1772771833356,1.92653263,2075.0,2074.6,0.73100036]
[1772771833560,3.46653263,2075.0,2074.6,0.73100036]
[1772771835237,0.72066742,2074.9,2074.6,0.73100036]
[1772771835437,0.72066742,2074.9,2074.5,0.0011]
[1772771837368,0.72066742,2074.7,2074.5,0.0011]
[1772771841077,1.92571899,2074.6,2074.5,0.0011]
[1772771844360,3.46771899,2074.6,2074.5,0.0011]
[1772771851909,0.75948278,2074.5,2074.3,0.0011]
[1772771852539,0.75948278,2074.5,2074.1,0.0011]
[1772771853432,1.96465053,2074.4,2074.1,0.0011]
[1772771853633,0.75948278,2074.4,2074.1,0.75585064]
[1772771853831,1.20514641,2074.5,2074.1,0.75585064]
[1772771854036,1.96462919,2074.5,2074.1,0.75585064]
[1772771856059,0.75948278,2074.4,2074.1,0.0011]
[1772771856671,0.75948278,2074.4,2074.1,0.75585064]
[1772771857849,1.96467879,2074.4,2074.1,0.75585064]
[1772771859167,0.75948278,2074.3,2074.1,0.0011]
[1772771859347,1.20519601,2074.4,2073.9,0.0011]
[1772771859348,0.75948278,2074.1,2073.9,0.0011]
[1772771859543,0.75948278,2074.1,2073.6,0.75475064]
[1772771859748,0.75948278,2074.1,2073.5,0.0011]
[1772771859749,0.75948278,2073.9,2073.5,0.0011]
[1772771859952,0.75948278,2073.9,2073.2,0.75585064]
[1772771860276,0.75948278,2073.7,2073.2,0.75585064]
[1772771860460,0.75948278,2073.5,2073.2,0.0011]
[1772771860662,0.75948278,2073.5,2073.1,0.38865532]
[1772771860663,0.75948278,2073.5,2073.0,0.0011]
[1772771860862,0.75948278,2073.3,2072.7,0.0011]
[1772771861064,1.549,2073.6,2072.7,0.0011]
[1772771861065,0.75948278,2073.1,2072.7,0.0011]
[1772771861240,2.30848278,2073.0,2072.7,0.0011]
[1772771861446,1.549,2072.9,2072.7,0.0011]
[1772771861868,1.96558081,2072.8,2072.7,0.0011]
[1772771862277,0.75948278,2072.7,2071.9,0.75475064]
[1772771863273,0.75948278,2072.7,2071.8,1.20668018]
[1772771863696,0.75948278,2072.7,2071.8,1.96143082]
[1772771863989,0.75948278,2072.5,2071.8,1.96143082]
[1772771864897,0.75948278,2072.5,2071.6,1.9615204]
[1772771865197,0.75948278,2072.5,2071.6,0.75475064]
[1772771865401,0.75948278,2072.5,2071.7,0.75475064]
[1772771865561,0.75948278,2072.3,2071.7,0.75475064]
[1772771866162,1.96593003,2072.2,2071.7,0.75475064]
[1772771866982,0.75948278,2072.1,2071.7,0.75475064]
[1772771868564,1.55,2072.4,2071.8,0.75475064]
[1772771868565,1.551,2072.4,2071.8,0.75475064]
[1772771868781,0.75948278,2072.3,2071.8,0.75475064]
[1772771869885,1.551,2072.5,2071.8,0.75475064]
[1772771870094,0.90357218,2072.7,2071.8,0.75475064]
[1772771870389,0.59710125,2072.7,2071.8,0.75475064]
[1772771870590,0.59710125,2072.7,2072.0,0.75475064]
[1772771871091,0.59710125,2072.7,2072.2,0.75475064]
[1772771872703,0.59710125,2072.7,2072.4,0.75475064]
[1772771873207,3.51634992,2073.2,2072.4,0.75475064]
[1772771873407,1.96534992,2073.2,2072.4,0.75475064]
[1772771873570,3.51634992,2073.2,2072.4,0.75475064]
[1772771874510,0.75948278,2073.4,2072.5,1.20627261]
[1772771874845,0.75948278,2073.4,2072.6,0.75475064]
[1772771874846,2.31048278,2073.4,2072.6,0.75475064]
[1772771875268,0.75948278,2073.5,2072.6,0.75475064]
[1772771876981,0.75948278,2073.4,2072.8,0.75475064]
[1772771877314,1.20568203,2073.6,2072.8,0.75475064]
[1772771877470,3.51616481,2073.6,2072.8,0.75475064]
[1772771877870,0.75948278,2073.5,2072.8,0.75475064]
[1772771878305,0.75948278,2073.5,2072.7,1.20615622]
[1772771878521,0.75948278,2073.5,2072.6,5.57937552]
[1772771878522,0.75948278,2073.5,2072.6,0.75475064]
[1772771878793,0.75948278,2073.4,2072.3,0.75475064]
[1772771879581,0.75948278,2073.2,2072.5,0.75475064]
[1772771880170,0.75948278,2073.2,2072.5,0.74176958]
[1772771881174,1.20580716,2073.3,2072.5,0.74176958]
[1772771881380,0.74678779,2073.2,2072.5,0.74176958]
[1772771881696,0.74678779,2073.0,2072.4,0.74176958]
[1772771883827,1.95282763,2072.9,2072.4,1.94804758]
[1772771885420,0.74678779,2072.9,2072.4,1.94804758]
[1772771886412,0.74678779,2072.9,2072.5,0.74176958]
[1772771886924,1.20602658,2073.0,2072.5,0.74176958]
[1772771887125,0.74678779,2073.1,2072.5,0.74176958]
[1772771887617,0.74678779,2073.1,2072.6,0.74286958]
[1772771888024,0.001,2072.8,2072.6,0.74286958]
[1772771888613,0.001,2072.8,2072.6,1.94907917]
[1772771888897,0.001,2072.8,2072.6,0.74286958]
[1772771891391,0.001,2072.8,2072.6,0.0011]
[1772771891591,0.74778779,2072.8,2072.1,0.0011]
[1772771891795,0.74778779,2072.8,2072.2,0.74176958]
[1772771892026,2.29578779,2072.7,2072.2,0.74176958]
[1772771892230,0.74678779,2072.6,2072.2,0.74176958]
[1772771892399,0.74678779,2072.6,2072.1,0.0011]
[1772771893104,1.9530604,2072.5,2072.1,0.0011]
[1772771893517,2.75611193,2072.8,2072.1,0.74286958]
[1772771893716,3.50289972,2072.8,2072.1,0.74286958]
[1772771894015,3.50288813,2072.8,2072.1,0.74286958]
[1772771894216,0.74678779,2072.7,2072.1,0.74286958]
[1772771894621,2.75610034,2072.8,2072.1,0.0011]
[1772771894622,0.74678779,2072.5,2072.1,0.0011]
[1772771895195,0.74678779,2072.3,2072.1,0.0011]
[1772771895402,2.29578779,2072.3,2072.1,0.0011]
[1772771896231,0.74678779,2072.2,2071.9,0.0011]
[1772771897317,0.74678779,2072.0,2071.9,0.0011]
[1772771898439,0.74678779,2072.4,2071.9,0.74286958]
[1772771898606,2.75642601,2072.3,2071.9,0.74286958]
[1772771899217,3.5032138,2072.3,2071.9,0.74286958]
[1772771899729,1.20642601,2072.3,2071.9,0.74286958]
[1772771899946,1.9532138,2072.3,2071.9,0.74286958]
[1772771900106,0.74678779,2072.2,2072.1,0.0011]
[1772771901159,1.551,2072.5,2072.1,0.0011]
[1772771901339,1.20633082,2072.4,2072.1,0.0011]
[1772771901704,1.95311861,2072.4,2072.1,0.0011]
[1772771903528,0.74678779,2072.4,2072.1,0.0011]
[1772771903718,1.95311998,2072.4,2072.1,0.0011]
[1772771904125,0.74678779,2072.3,2072.1,0.0011]
[1772771905150,2.29778779,2072.3,2072.1,0.0011]
[1772771905652,3.50422719,2072.3,2072.1,0.0011]
[1772771906955,2.29778779,2072.3,2072.1,0.0011]
[1772771907249,1.551,2072.3,2072.1,0.0011]
[1772771907622,1.2063901,2072.3,2072.1,0.0011]
[1772771908423,2.7583901,2072.3,2072.1,0.0011]
[1772771910550,1.2063901,2072.3,2072.1,0.0011]
[1772771910730,2.7583901,2072.3,2072.1,0.0011]
[1772771910931,1.552,2072.3,2072.1,0.0011]
[1772771911256,1.552,2072.3,2072.1,0.71128807]
[1772771912256,1.552,2072.3,2072.1,0.0011]
[1772771912887,2.75840665,2072.3,2072.1,0.0011]
[1772771913180,1.20640665,2072.3,2072.1,0.0011]
[1772771913375,2.75840665,2072.3,2072.1,0.0011]
[1772771913882,3.4640269,2072.3,2072.1,0.0011]
[1772771914085,0.70562025,2072.1,2071.6,1e-08]
[1772771914284,0.70562025,2072.1,2071.4,0.0011]
[1772771914285,0.70562025,2071.6,2071.4,0.0011]
[1772771914672,1.552,2071.5,2071.4,0.0011]
[1772771916186,1.552,2071.5,2071.1,0.71018807]
[1772771916187,2.75885493,2071.5,2070.9,0.71018807]
[1772771916378,2.75885493,2071.5,2070.5,1.20738545]
[1772771916379,0.70562025,2071.4,2070.5,1.20738545]
[1772771916561,0.70562025,2071.4,2070.6,0.71018807]
[1772771916761,1.553,2071.3,2070.6,0.71018807]
[1772771916964,1.553,2071.2,2070.6,0.71018807]
[1772771917164,0.70562025,2071.6,2070.8,0.71018807]
[1772771917885,0.70562025,2072.0,2070.8,0.71018807]
[1772771918080,1.552,2071.9,2070.8,0.71018807]
[1772771918962,0.70562025,2072.0,2070.8,0.71018807]
[1772771919160,2.24462025,2072.0,2071.0,0.71018807]
[1772771919669,4.82569455,2072.3,2071.0,0.71018807]
[1772771919670,0.70562025,2072.3,2071.0,0.71018807]
[1772771920199,1.528,2072.4,2071.0,0.71018807]
[1772771920515,2.23362025,2072.4,2071.0,0.71018807]
[1772771920885,0.70562025,2072.3,2071.0,0.71018807]
[1772771921079,1.9120675,2072.2,2071.2,0.71018807]
[1772771921392,0.70562025,2072.2,2071.2,0.71018807]
[1772771922697,0.70562025,2072.5,2071.2,0.71018807]
[1772771922896,0.70562025,2072.4,2071.2,0.71018807]
[1772771923197,0.70562025,2072.4,2071.4,0.71018807]
[1772771923601,0.001,2072.1,2071.4,0.71018807]
[1772771925396,0.001,2072.1,2071.5,1.20685493]
[1772771925598,0.001,2072.1,2071.6,0.71018807]
[1772771925802,0.70662025,2072.1,2071.5,1.20685493]
[1772771926011,0.70662025,2072.1,2071.5,1.917043]
[1772771926304,0.70662025,2072.1,2071.5,1.20685493]
[1772771926506,0.70662025,2072.1,2071.6,0.71018807]
[1772771926878,0.001,2072.1,2071.6,0.71018807]
[1772771927376,0.70662025,2072.1,2071.7,1.20673842]
[1772771928305,0.70662025,2072.1,2071.6,1.91694671]
[1772771928891,0.70562025,2072.0,2071.6,1.20675864]
[1772771929604,0.70562025,2072.0,2071.5,4.82729138]
[1772771929780,0.70562025,2072.0,2071.5,1.20685493]